bitfinex/quotes_ETHUSD_20251004
["timestamp","ask_amount","ask_price","bid_price","bid_amount"]
[1759566844331,1.806965,4493.5,4492.9,0.1112]
[1759566844628,0.13345007,4493.7,4492.9,0.1112]
[1759566844792,2.22555902,4493.3,4492.9,0.1112]
[1759566845722,2.22582501,4492.8,4492.5,0.1122]
[1759566846216,0.4601,4492.7,4492.5,0.1122]
[1759566846814,0.4601,4492.6,4492.5,0.1122]
[1759566847323,2.68598256,4492.6,4492.5,0.1122]
[1759566847817,0.4601,4492.6,4492.5,0.1122]
[1759566848320,2.68598256,4492.6,4492.5,0.1122]
[1759566849825,2.68598256,4492.6,4492.5,0.001]
[1759566851757,0.02225007,4492.7,4492.5,0.001]
[1759566851966,2.22586335,4492.7,4492.5,0.001]
[1759566852108,2.22588256,4492.6,4492.5,0.001]
[1759566852758,2.22584266,4492.7,4492.5,0.001]
[1759566853209,0.002,4493.3,4492.5,0.001]
[1759566853210,0.6356,4493.3,4492.5,0.001]
[1759566853410,0.1112,4493.0,4492.5,0.4516]
[1759566853616,0.1112,4493.0,4492.6,0.47285882]
[1759566854035,0.1112,4493.0,4492.6,0.02225882]
[1759566854242,2.22577783,4492.9,4492.6,0.02225882]
[1759566854552,2.22582862,4492.8,4492.6,0.02225882]
[1759566854738,2.22582862,4492.8,4492.5,0.001]
[1759566855235,2.22584782,4492.7,4492.5,0.001]
[1759566855546,2.22588256,4492.6,4492.5,0.001]
[1759566856565,6.41588256,4492.6,4492.5,0.001]
[1759566856775,4.19,4492.6,4492.5,0.001]
[1759566857072,6.41588256,4492.6,4492.5,0.001]
[1759566857456,4.19,4492.6,4492.5,0.001]
[1759566857846,6.41588256,4492.6,4492.5,0.001]
[1759566860849,4.19,4492.6,4492.5,0.001]
[1759566861437,6.41588256,4492.6,4492.5,0.001]
[1759566861860,6.86918256,4492.6,4492.5,0.001]
[1759566863377,6.41588256,4492.6,4492.5,0.001]
[1759566864193,4.19,4492.6,4492.5,0.001]
[1759566865078,6.41588256,4492.6,4492.5,0.001]
[1759566865583,4.19,4492.6,4492.5,0.001]
[1759566866181,6.41588256,4492.6,4492.5,0.001]
[1759566866544,4.19,4492.6,4492.5,0.001]
[1759566868089,6.41588256,4492.6,4492.5,0.001]
[1759566871795,6.88478256,4492.6,4492.5,0.001]
[1759566872700,7.90704076,4492.6,4492.5,0.001]
[1759566872898,8.54064076,4492.6,4492.5,0.001]
[1759566877109,8.07174076,4492.6,4492.5,0.001]
[1759566877267,7.16068256,4492.6,4492.5,0.001]
[1759566877465,7.62958256,4492.6,4492.5,0.001]
[1759566879298,5.4037,4492.6,4492.5,0.001]
[1759566879699,7.62958256,4492.6,4492.5,0.001]
[1759566883421,6.52708256,4492.6,4492.5,0.001]
[1759566883623,6.99598256,4492.6,4492.5,0.001]
[1759566892556,6.52708256,4492.6,4492.5,0.001]
[1759566895063,4.3012,4492.6,4492.5,0.001]
[1759566895421,4.32345007,4492.6,4492.5,0.001]
[1759566896655,4.19,4492.6,4492.5,0.4529]
[1759566896855,0.6336,4493.2,4492.5,0.001]
[1759566896856,0.1112,4492.8,4492.5,0.001]
[1759566897352,0.02225007,4492.7,4492.5,0.001]
[1759566897757,0.1112,4492.8,4492.6,0.4519]
[1759566898123,0.1112,4492.8,4492.5,0.001]
[1759566898323,0.1112,4492.8,4492.7,0.4519]
[1759566898524,0.1112,4492.8,4492.5,0.001]
[1759566899328,0.1112,4492.8,4492.6,0.4519]
[1759566899551,0.1112,4492.8,4492.7,0.4519]
[1759566899758,0.1112,4492.8,4492.5,0.001]
[1759566900060,0.1112,4492.8,4492.5,0.4529]
[1759566900263,0.1112,4492.8,4492.5,0.001]
[1759566900653,0.5538,4492.8,4492.5,0.001]
[1759566901169,2.22588256,4492.6,4492.5,0.001]
[1759566901508,2.85948256,4492.6,4492.5,0.001]
[1759566901826,3.30208256,4492.6,4492.5,0.001]
[1759566902925,3.32433263,4492.6,4492.5,0.001]
[1759566903651,3.89046099,4492.6,4492.5,0.001]
[1759566905068,1.22197843,4492.6,4492.5,0.001]
[1759566905301,0.6336,4492.6,4492.5,0.001]
[1759566906514,0.02225007,4492.9,4492.5,0.001]
[1759566906707,0.65585007,4492.9,4492.5,0.4529]
[1759566906860,0.02225007,4492.9,4492.5,0.001]
[1759566907065,2.22744791,4493.5,4492.5,0.001]
[1759566907066,0.6336,4493.2,4492.6,0.4519]
[1759566907406,0.02225007,4493.2,4492.5,0.4529]
[1759566907608,0.02425007,4493.3,4492.6,0.47415882]
[1759566907821,0.6336,4493.2,4492.6,0.47415882]
[1759566908018,0.02225007,4493.1,4492.6,0.47415882]
[1759566908818,0.02225007,4493.1,4492.5,0.001]
[1759566910694,0.02225007,4493.2,4492.6,0.4519]
[1759566911297,0.002,4493.3,4492.6,0.7221144]
[1759566911494,0.002,4493.3,4492.6,0.4519]
[1759566911495,0.4539,4493.3,4492.6,0.4519]
[1759566911713,0.002,4493.3,4492.6,0.4519]
[1759566912398,0.002,4493.3,4492.5,0.001]
[1759566912824,0.02425007,4493.3,4492.5,0.001]
[1759566913715,0.02425007,4493.3,4492.8,0.1112]
[1759566914251,0.46685007,4493.3,4492.8,0.1112]
[1759566914950,0.02425007,4493.3,4492.8,0.1112]
[1759566915154,0.02425007,4493.3,4492.8,0.5631]
[1759566915521,0.02425007,4493.3,4492.8,0.1112]
[1759566915852,0.46685007,4493.3,4492.8,0.1112]
[1759566916239,0.4426,4493.2,4492.8,0.1112]
[1759566917550,0.002,4493.3,4492.8,0.1112]
[1759566917754,0.02425007,4493.3,4492.9,0.4519]
[1759566918240,0.02425007,4493.3,4492.8,0.1112]
[1759566918438,0.02425007,4493.3,4492.9,0.4519]
[1759566919045,0.02425007,4493.3,4493.0,0.4519]
[1759566920379,0.02425007,4493.3,4492.8,0.1112]
[1759566920790,0.02425007,4493.3,4492.8,0.5565]
[1759566921342,0.02425007,4493.3,4492.9,0.4453]
[1759566922788,0.02425007,4493.3,4492.8,0.1112]
[1759566923146,0.4453,4493.2,4492.8,0.1112]
[1759566924865,4.19,4493.1,4492.8,0.1112]
[1759566927081,4.6186,4493.1,4492.8,0.1112]
[1759566928493,4.19,4493.1,4492.8,0.1112]
[1759566928859,0.4453,4493.2,4492.8,0.1112]
[1759566928860,4.6353,4493.2,4492.8,0.1112]
[1759566930289,4.19,4493.2,4492.8,0.1112]
[1759566930698,0.4548,4493.1,4492.8,0.1112]
[1759566931711,0.4548,4493.0,4492.8,0.1112]
[1759566931929,0.02225007,4492.9,4492.8,0.1112]
[1759566932082,0.13345007,4492.9,4492.5,0.001]
[1759566932438,0.4548,4492.8,4492.5,0.001]
[1759566934359,0.24465007,4492.9,4492.5,0.001]
[1759566934859,0.58825007,4492.9,4492.5,0.001]
[1759566935051,0.4548,4492.8,4492.5,0.001]
[1759566935526,0.4548,4492.7,4492.5,0.001]
[1759566939730,4.19,4492.6,4492.5,0.001]
[1759566948193,0.1112,4492.9,4492.5,0.4697]
[1759566948194,4.19,4492.7,4492.5,0.4697]
[1759566948418,4.19,4492.7,4492.6,0.4687]
[1759566949401,6.41583301,4492.7,4492.5,0.001]
[1759566949600,4.19,4492.7,4492.5,0.001]
[1759566950601,6.41587496,4492.7,4492.5,0.001]
[1759566950929,6.86317496,4492.7,4492.5,0.001]
[1759566952731,2.69543263,4492.6,4492.5,0.001]
[1759566953140,2.80663263,4492.6,4492.5,0.001]
[1759566955350,3.74935206,4492.6,4492.5,0.001]
[1759566955849,4.27175206,4492.6,4492.5,0.001]
[1759566956022,4.47650154,4492.6,4492.5,0.001]
[1759566956224,4.45425147,4492.6,4492.5,0.001]
[1759566957524,8.64425147,4492.6,4492.5,0.001]
[1759566961157,6.62063204,4492.6,4492.5,0.001]
[1759566961447,6.86318256,4492.6,4492.5,0.001]
[1759566964964,7.49678256,4492.6,4492.5,0.001]
[1759566965870,7.60798256,4492.6,4492.5,0.001]
[1759566968373,11.25336291,4492.6,4492.5,0.001]
[1759566968570,12.6012804,4492.6,4492.5,0.001]
[1759566968778,12.80602988,4492.6,4492.5,0.001]
[1759566969172,9.16064953,4492.6,4492.5,0.001]
[1759566969384,12.80602988,4492.6,4492.5,0.001]
[1759566970764,8.71334953,4492.6,4492.5,0.001]
[1759566972140,4.9348,4492.6,4492.5,0.001]
[1759566972480,7.16068256,4492.6,4492.5,0.001]
[1759566973348,7.60798256,4492.6,4492.5,0.001]
[1759566978496,7.16068256,4492.6,4492.5,0.001]
[1759566982433,7.60298256,4492.6,4492.5,0.001]
[1759566982593,7.80773204,4492.6,4492.5,0.001]
[1759566982794,9.22830244,4492.6,4492.5,0.001]
[1759566984237,2.22608076,4492.2,4492.1,0.20474948]
[1759566984443,7.06993083,4492.2,4492.1,0.20474948]
[1759566984741,7.15888076,4492.2,4492.1,0.20474948]
[1759566988706,7.15888076,4492.2,4492.1,0.66514948]
[1759566989312,4.2992,4492.2,4492.1,0.20474948]
[1759566989510,0.1112,4492.2,4492.1,0.66514948]
[1759566990625,0.1112,4492.2,4492.1,0.20474948]
[1759566990951,0.1112,4492.2,4492.1,0.66514948]
[1759566991446,2.33728076,4492.2,4492.1,0.66514948]
[1759566991828,0.1112,4492.2,4492.1,0.66514948]
[1759566993967,0.1112,4492.5,4492.1,0.66514948]
[1759566994167,0.1112,4492.5,4492.2,0.4604]
[1759566995831,2.22573463,4492.9,4492.3,0.4604]
[1759566996146,0.02225007,4493.1,4492.4,0.02225981]
[1759566996349,0.1112,4492.9,4492.5,0.4604]
[1759566996872,0.1112,4492.9,4492.6,0.4604]
[1759566997071,0.1112,4492.9,4492.7,0.4604]
[1759566997278,0.1112,4492.9,4492.2,0.0222608]
[1759566997573,2.33693393,4492.9,4492.8,0.4604]
[1759566998059,2.33693393,4492.9,4492.6,0.4604]
[1759566998258,2.33693393,4492.9,4492.7,0.4604]
[1759566999169,2.33693393,4492.9,4492.5,0.4604]
[1759566999328,2.22578374,4492.8,4492.5,0.4604]
[1759566999976,0.02225007,4492.7,4492.1,0.31594948]
[1759567000129,0.4528,4492.7,4492.1,0.20474948]
[1759567000333,0.1112,4492.2,4492.1,0.20474948]
[1759567000533,0.564,4492.2,4492.1,0.20474948]
[1759567001351,2.79008076,4492.2,4492.1,0.20474948]
[1759567004273,0.564,4492.2,4492.1,0.20474948]
[1759567004575,0.1112,4492.2,4492.1,0.66514948]
[1759567005670,0.1112,4492.2,4492.1,0.20474948]
[1759567005875,2.24819054,4492.5,4492.1,0.66514948]
[1759567006577,4.2992,4492.6,4492.2,0.4826608]
[1759567006733,7.05,4492.8,4492.3,0.4604]
[1759567006960,7.05,4492.8,4492.1,0.20474948]
[1759567006961,7.05,4492.8,4492.4,0.48265981]
[1759567007160,7.05,4492.8,4492.5,0.4604]
[1759567007361,0.1112,4492.9,4492.1,0.20474948]
[1759567007362,0.1112,4492.9,4492.6,0.4604]
[1759567007562,2.33693464,4492.9,4492.4,0.4604]
[1759567007770,0.1112,4492.9,4492.4,0.4604]
[1759567008177,0.1112,4492.9,4492.3,0.13346031]
[1759567008390,2.33694366,4492.9,4492.3,0.59386031]
[1759567009613,2.33694366,4492.9,4492.3,0.13346031]
[1759567009820,2.33694366,4492.9,4492.4,0.02225981]
[1759567010118,0.02225007,4492.8,4492.4,0.02225981]
[1759567010703,2.33694366,4492.9,4492.4,0.02225981]
[1759567011369,0.1112,4492.9,4492.4,0.47995981]
[1759567011570,0.1112,4492.9,4492.4,0.02225981]
[1759567011772,0.1112,4492.9,4492.3,0.1112]
[1759567011773,2.22583408,4492.7,4492.3,0.1112]
[1759567012307,0.45765007,4492.6,4492.3,0.1112]
[1759567013018,2.6835493,4492.6,4492.3,0.1112]
[1759567013192,0.4354,4492.6,4492.3,0.1112]
[1759567014123,0.02225007,4492.8,4492.3,0.1112]
[1759567014732,0.02225007,4492.8,4492.3,0.5689]
[1759567014884,0.02225007,4492.8,4492.3,0.1112]
[1759567015221,0.02225007,4492.8,4492.4,0.4577]
[1759567015719,0.02225007,4492.8,4492.3,0.1112]
[1759567016019,0.02225007,4492.8,4492.4,0.4577]
[1759567016224,0.02225007,4492.8,4492.3,0.1112]
[1759567016407,0.4354,4492.7,4492.1,0.20474948]
[1759567016599,0.1112,4492.5,4492.1,0.20474948]
[1759567016796,0.5466,4492.5,4492.1,0.20474948]
[1759567017914,0.02225007,4492.4,4492.1,0.20474948]
[1759567019192,0.45765007,4492.4,4492.1,0.20474948]
[1759567019927,0.02225007,4492.4,4492.1,0.20474948]
[1759567020228,0.1112,4492.5,4492.1,0.20474948]
[1759567021310,0.77941618,4492.5,4492.1,0.20474948]
[1759567021507,0.1112,4492.5,4492.1,0.66244948]
[1759567021936,0.1112,4492.5,4492.2,0.799696]
[1759567022410,0.1112,4492.5,4492.3,0.799696]
[1759567023724,0.1112,4492.5,4492.2,0.799696]
[1759567024026,0.02225007,4492.4,4492.2,0.799696]
[1759567024428,2.22608076,4492.2,4492.1,1.00444548]
[1759567024600,0.45765007,4492.2,4492.1,0.20474948]
[1759567024801,0.4354,4492.2,4492.1,0.20474948]
[1759567025386,2.66148076,4492.2,4492.1,0.20474948]
[1759567025828,2.68373083,4492.2,4492.1,0.20474948]
[1759567026706,0.45765007,4492.2,4492.1,0.20474948]
[1759567027051,0.02225007,4492.2,4492.1,0.20474948]
[1759567028194,2.68373083,4492.2,4492.1,0.20474948]
[1759567028697,0.45765007,4492.2,4492.1,0.20474948]
[1759567029906,0.02225007,4492.2,4492.1,0.20474948]
[1759567031141,0.45765007,4492.2,4492.1,0.20474948]
[1759567031307,0.02225007,4492.2,4492.1,0.20474948]
[1759567034812,4.21025007,4492.2,4492.1,0.20474948]
[1759567036806,6.87173083,4492.2,4492.1,0.20474948]
[1759567037010,6.41408076,4492.2,4492.1,0.20474948]
[1759567037415,4.188,4492.2,4492.1,0.20474948]
[1759567037647,4.21025007,4492.2,4492.1,0.20474948]
[1759567038251,6.87173083,4492.2,4492.1,0.20474948]
[1759567038451,7.87045491,4492.2,4492.1,0.20474948]
[1759567038953,8.07520439,4492.2,4492.1,0.20474948]
[1759567041047,12.35587558,4492.2,4492.1,0.20474948]
[1759567041664,14.75587558,4492.2,4492.1,0.20474948]
[1759567042162,10.56787558,4492.2,4492.1,0.20474948]
[1759567042360,2.85973031,4492.1,4492.0,0.001]
[1759567042520,3.88116317,4492.1,4492.0,0.001]
[1759567042722,4.31646317,4492.1,4492.0,0.001]
[1759567044053,1.63278279,4492.1,4492.0,0.001]
[1759567044350,2.88198038,4492.1,4492.0,0.001]
[1759567047254,2.97108778,4492.1,4492.0,0.001]
[1759567047666,0.11135747,4492.1,4492.0,0.001]
[1759567047964,0.02425007,4492.8,4492.0,0.436]
[1759567048129,2.22599348,4492.4,4492.0,0.436]
[1759567048335,2.22608076,4492.2,4492.1,0.435]
[1759567050651,2.22608076,4492.2,4492.0,0.001]
[1759567050829,2.22608076,4492.2,4492.0,0.4622]
[1759567052074,2.24823305,4492.4,4492.0,0.4622]
[1759567052283,2.22608376,4492.2,4492.0,0.4622]
[1759567052981,0.002,4492.3,4492.0,0.001]
[1759567053164,0.002,4492.3,4492.1,0.4612]
[1759567053342,2.25028502,4492.3,4492.2,0.4612]
[1759567053884,0.002,4492.3,4492.2,0.4612]
[1759567055176,2.2280312,4492.3,4492.2,0.4612]
[1759567055968,2.2280312,4492.3,4492.0,0.001]
[1759567056642,0.02425007,4492.3,4492.0,0.001]
[1759567056848,2.22613031,4492.1,4492.0,0.4622]
[1759567057362,2.22609305,4492.2,4492.0,0.4622]
[1759567057759,2.22613031,4492.1,4492.0,0.4622]
[1759567058046,2.22613031,4492.1,4492.0,0.001]
[1759567061260,0.02225007,4492.2,4492.0,0.001]
[1759567061662,2.25030444,4492.3,4492.0,0.001]
[1759567061894,2.2260881,4492.2,4492.0,0.001]
[1759567062998,2.22613031,4492.1,4492.0,0.001]
[1759567063302,2.67908038,4492.1,4492.0,0.001]
[1759567064073,0.02225007,4492.1,4492.0,0.001]
[1759567064601,2.22608076,4492.2,4492.0,0.001]
[1759567064801,2.24838038,4492.1,4492.0,0.001]
[1759567065306,0.02225007,4492.1,4492.0,0.001]
[1759567065677,2.24838038,4492.1,4492.0,0.001]
[1759567066505,2.67908038,4492.1,4492.0,0.001]
[1759567066806,0.45295007,4492.1,4492.0,0.001]
[1759567067002,0.02225007,4492.1,4492.0,0.001]
[1759567067786,0.02425007,4492.3,4492.0,0.001]
[1759567068002,2.22608076,4492.2,4492.0,0.001]
[1759567068206,0.02225007,4492.1,4492.0,0.001]
[1759567068405,2.24838038,4492.1,4492.0,0.001]
[1759567071212,0.02225007,4492.1,4492.0,0.001]
[1759567071813,2.24838038,4492.1,4492.0,0.001]
[1759567072700,0.02225007,4492.1,4492.0,0.001]
[1759567072904,2.24833468,4492.2,4492.0,0.001]
[1759567074119,2.22613031,4492.1,4492.0,0.001]
[1759567075618,2.69193031,4492.1,4492.0,0.001]
[1759567076321,3.19727444,4492.1,4492.0,0.001]
[1759567077987,3.39758104,4492.1,4492.0,0.001]
[1759567079620,2.93178104,4492.1,4492.0,0.001]
[1759567079820,3.39758104,4492.1,4492.0,0.001]
[1759567081222,4.03118104,4492.1,4492.0,0.001]
[1759567082783,6.43118104,4492.1,4492.0,0.001]
[1759567084222,17.66918104,4492.1,4492.0,0.001]
[1759567088198,17.67118104,4492.1,4492.0,0.001]
[1759567089927,17.20538104,4492.1,4492.0,0.001]
[1759567091210,7.04492856,4491.7,4491.6,0.001]
[1759567091408,9.55612856,4491.7,4491.6,0.001]
[1759567092747,10.77846931,4491.7,4491.6,0.001]
[1759567093294,11.24426931,4491.7,4491.6,0.001]
[1759567093700,11.33339577,4491.7,4491.6,0.001]
[1759567094443,2.33752856,4491.7,4491.6,0.441]
[1759567094737,0.1112,4491.7,4491.6,0.441]
[1759567095247,2.35977863,4491.7,4491.6,0.441]
[1759567095543,2.35977863,4491.7,4491.6,0.001]
[1759567098084,3.06729112,4491.7,4491.6,0.001]
[1759567098291,3.53309112,4491.7,4491.6,0.001]
[1759567098586,2.35977863,4491.7,4491.6,0.001]
[1759567104026,0.13345007,4491.7,4491.6,0.001]
[1759567104880,2.35977863,4491.7,4491.6,0.001]
[1759567106014,6.54477863,4491.7,4491.6,0.001]
[1759567106315,6.52252856,4491.7,4491.6,0.001]
[1759567114450,7.69043583,4491.7,4491.6,0.001]
[1759567114610,8.75613583,4491.7,4491.6,0.001]
[1759567114807,11.15613583,4491.7,4491.6,0.001]
[1759567115027,11.24525633,4491.7,4491.6,0.001]
[1759567115611,7.06025633,4491.7,4491.6,0.001]
[1759567117807,6.62815633,4491.7,4491.6,0.001]
[1759567118816,0.8339205,4491.7,4491.6,0.001]
[1759567119017,3.08249913,4491.7,4491.6,0.4515]
[1759567119218,3.08249913,4491.7,4491.6,0.001]
[1759567119427,2.99337863,4491.7,4491.6,0.001]
[1759567124053,2.99537863,4491.7,4491.6,0.001]
[1759567124252,3.42747863,4491.7,4491.6,0.001]
[1759567124948,3.80966359,4491.7,4491.6,0.001]
[1759567125153,4.27116359,4491.7,4491.6,0.001]
[1759567126265,4.70326359,4491.7,4491.6,0.001]
[1759567126425,4.24891352,4491.7,4491.6,0.001]
[1759567126618,4.27116359,4491.7,4491.6,0.001]
[1759567127561,4.70326359,4491.7,4491.6,0.001]
[1759567127772,4.68101352,4491.7,4491.6,0.001]
[1759567128775,4.24891352,4491.7,4491.6,0.001]
[1759567128929,4.27116359,4491.7,4491.6,0.001]
[1759567129329,4.70326359,4491.7,4491.6,0.001]
[1759567129552,4.24891352,4491.7,4491.6,0.001]
[1759567129868,4.70326359,4491.7,4491.6,0.001]
[1759567130045,6.64891352,4491.7,4491.6,0.001]
[1759567130245,7.08101352,4491.7,4491.6,0.001]
[1759567131031,6.64891352,4491.7,4491.6,0.001]
[1759567131631,7.10281352,4491.7,4491.6,0.001]
[1759567135665,6.64891352,4491.7,4491.6,0.001]
[1759567137775,7.10281352,4491.7,4491.6,0.001]
[1759567141062,6.64891352,4491.7,4491.6,0.001]
[1759567141746,7.10281352,4491.7,4491.6,0.001]
[1759567144306,6.64891352,4491.7,4491.6,0.001]
[1759567144825,2.22649388,4491.4,4491.1,0.4799]
[1759567145021,4.20525007,4491.3,4491.1,0.4799]
[1759567145321,0.1112,4491.2,4491.1,0.011]
[1759567145821,0.13345007,4491.2,4491.1,0.4799]
[1759567150720,4.31645007,4491.2,4491.1,0.4799]
[1759567150889,4.31645007,4491.2,4491.1,0.011]
[1759567156336,4.31645007,4491.2,4489.8,0.4689]
[1759567156337,2.4,4491.1,4489.8,0.4689]
[1759567156505,0.6336,4490.8,4490.1,0.4789]
[1759567156836,0.02225007,4490.7,4490.1,0.4789]
[1759567157131,0.6336,4490.6,4490.1,0.4789]
[1759567157361,2.24917876,4490.5,4490.2,0.4689]
[1759567157565,0.02225007,4490.5,4490.2,0.4689]
[1759567157861,2.24917383,4490.5,4490.2,0.4689]
[1759567158170,2.24917383,4490.5,4490.1,0.01]
[1759567158320,2.22697975,4490.4,4490.1,0.01]
[1759567158518,0.02225007,4490.3,4490.1,0.01]
[1759567159021,0.02225007,4490.5,4490.2,0.4689]
[1759567159350,0.02225007,4490.5,4490.1,0.01]
[1759567159530,2.2491942,4490.5,4490.1,0.4789]
[1759567159712,0.02225007,4490.5,4490.1,0.4789]
[1759567159916,0.02225007,4490.5,4490.1,0.01]
[1759567160118,2.24917741,4490.5,4490.2,0.4689]
[1759567160312,2.24917741,4490.5,4490.1,0.011]
[1759567160313,0.02225007,4490.5,4490.1,0.011]
[1759567160518,0.02225007,4490.5,4490.2,0.4365]
[1759567160745,0.02225007,4490.5,4490.1,0.011]
[1759567160746,2.22697452,4490.4,4490.1,0.011]
[1759567160948,0.02225007,4490.3,4490.1,0.011]
[1759567162468,0.66854378,4490.6,4490.1,0.011]
[1759567162469,2.22707229,4490.2,4490.1,0.011]
[1759567162675,6.43232236,4490.2,4490.1,0.011]
[1759567162822,4.183,4490.2,4490.1,0.011]
[1759567163018,4.65615007,4490.2,4490.1,0.011]
[1759567163235,6.86097229,4490.2,4490.1,0.011]
[1759567163457,7.84964082,4490.2,4490.1,0.011]
[1759567164420,8.48324082,4490.2,4490.1,0.011]
[1759567166364,8.59444082,4490.2,4490.1,0.011]
[1759567167061,9.26307699,4490.2,4490.1,0.011]
[1759567170456,8.81217699,4490.2,4490.1,0.011]
[1759567170970,4.96283617,4490.2,4490.1,0.011]
[1759567171184,4.2942,4490.2,4490.1,0.4712]
[1759567172757,4.2942,4490.2,4490.1,0.011]
[1759567172957,4.31645007,4490.2,4490.1,0.011]
[1759567173290,4.31645007,4490.2,4490.1,0.4712]
[1759567173783,6.54352236,4490.2,4490.1,0.011]
[1759567173974,6.52127229,4490.2,4490.1,0.011]
[1759567175187,4.2942,4490.2,4490.1,0.011]
[1759567175397,4.31645007,4490.2,4490.1,0.011]
[1759567176301,6.52127229,4490.2,4490.1,0.011]
[1759567177336,7.50645546,4490.2,4490.1,0.011]
[1759567177600,7.94145546,4490.2,4490.1,0.011]
[1759567179398,6.95627229,4490.2,4490.1,0.011]
[1759567180799,7.58987229,4490.2,4490.1,0.011]
[1759567185242,7.15487229,4490.2,4490.1,0.011]
[1759567185436,2.97187229,4490.2,4490.1,0.011]
[1759567185636,2.99412236,4490.2,4490.1,0.011]
[1759567186349,3.42912236,4490.2,4490.1,0.011]
[1759567186515,4.09774362,4490.2,4490.1,0.011]
[1759567186949,3.66274362,4490.2,4490.1,0.011]
[1759567188719,4.6867164,4490.2,4490.1,0.011]
[1759567188923,4.66446633,4490.2,4490.1,0.011]
[1759567189141,4.22946633,4490.2,4490.1,0.011]
[1759567189449,4.2517164,4490.2,4490.1,0.011]
[1759567189620,4.6867164,4490.2,4490.1,0.011]
[1759567189918,4.66446633,4490.2,4490.1,0.011]
[1759567190751,4.22946633,4490.2,4490.1,0.011]
[1759567191048,7.0153164,4490.2,4490.1,0.011]
[1759567191217,6.99306633,4490.2,4490.1,0.011]
[1759567191422,7.47196416,4490.2,4490.1,0.011]
[1759567194156,6.99306633,4490.2,4490.1,0.011]
[1759567194873,7.47179393,4490.2,4490.1,0.011]
[1759567195083,8.91146833,4489.7,4489.6,1.17458678]
[1759567195265,9.38626833,4489.7,4489.6,1.17458678]
[1759567195741,10.05506996,4489.7,4489.6,1.17458678]
[1759567197476,10.05506996,4489.7,4489.6,1.17558678]
[1759567198048,5.92972194,4489.7,4489.6,1.17558678]
[1759567198340,6.99349472,4489.7,4489.6,1.17558678]
[1759567200882,7.10469472,4489.7,4489.6,1.17558678]
[1759567202922,10.75524274,4489.7,4489.6,1.17558678]
[1759567205218,6.62989472,4489.7,4489.6,1.17558678]
[1759567207474,7.10469472,4489.7,4489.6,1.17558678]
[1759567207969,6.62989472,4489.7,4489.6,1.17558678]
[1759567209060,4.40257441,4489.7,4489.6,1.17558678]
[1759567209231,3.81360163,4489.7,4489.6,1.62708678]
[1759567209437,3.8358517,4489.7,4489.6,1.62708678]
[1759567210768,6.06317201,4489.7,4489.6,1.17558678]
[1759567210922,6.04092194,4489.7,4489.6,1.17558678]
[1759567211321,6.04092194,4489.7,4489.6,1.62708678]
[1759567211576,6.04092194,4489.7,4489.6,1.17558678]
[1759567214368,6.04092194,4489.7,4489.6,1.62708678]
[1759567214881,10.22392194,4489.7,4489.6,1.62708678]
[1759567215437,10.22392194,4489.7,4489.6,1.17558678]
[1759567216164,7.99660163,4489.7,4489.6,1.62708678]
[1759567217127,10.22392194,4489.7,4489.6,1.62708678]
[1759567217327,10.22392194,4489.7,4489.6,1.17558678]
[1759567221507,10.66152194,4489.7,4489.6,1.17558678]
[1759567221880,10.66152194,4489.7,4489.1,0.01]
[1759567221881,2.22741953,4489.5,4489.1,0.01]
[1759567222076,2.33875069,4489.3,4489.1,0.01]
[1759567222277,0.02225007,4489.2,4489.1,0.01]
[1759567222486,2.69781845,4489.2,4489.1,0.458]
[1759567222684,0.47025007,4489.2,4489.1,0.458]
[1759567223511,0.47025007,4489.2,4489.1,0.01]
[1759567224022,0.47025007,4489.2,4489.1,0.458]
[1759567226173,2.69781845,4489.2,4489.1,0.01]
[1759567226640,6.55732139,4489.2,4489.1,0.01]
[1759567226850,6.99492139,4489.2,4489.1,0.01]
[1759567227495,6.55732139,4489.2,4489.1,0.01]
[1759567227695,11.85616206,4489.2,4489.1,0.01]
[1759567230964,11.85616206,4489.2,4489.1,1e-08]
[1759567232178,7.473876,4489.2,4489.1,1e-08]
[1759567234338,17.53128922,4489.2,4489.1,0.00100001]
[1759567241517,17.64248922,4489.2,4489.1,0.00100001]
[1759567246436,18.97948922,4489.2,4489.1,0.00100001]
[1759567251326,19.57740331,4489.2,4489.1,0.00100001]
[1759567252135,18.97768922,4489.2,4489.1,0.00100001]
[1759567252317,19.57560331,4489.2,4489.1,0.00100001]
[1759567253316,19.57760331,4489.2,4489.1,0.00100001]
[1759567254235,18.97968922,4489.2,4489.1,0.00100001]
[1759567254440,18.54388922,4489.2,4489.1,0.00100001]
[1759567255336,19.14158152,4489.2,4489.1,0.00100001]
[1759567255703,19.57738152,4489.2,4489.1,0.00100001]
[1759567256030,18.97968922,4489.2,4489.1,0.00100001]
[1759567257230,19.77814795,4489.2,4489.1,0.00100001]
[1759567260949,19.77775069,4489.2,4489.1,0.00100001]
[1759567262012,18.97968922,4489.2,4489.1,0.00100001]
[1759567263946,18.97968922,4489.2,4488.1,0.4723]
[1759567263947,2.2277388,4488.9,4488.1,0.01]
[1759567264256,10.98095076,4488.2,4488.1,1e-08]
[1759567264438,11.45990537,4488.2,4488.1,1e-08]
[1759567264949,11.89570537,4488.2,4488.1,1e-08]
[1759567265271,9.90101226,4488.2,4487.3,0.41230001]
[1759567265422,0.6336,4487.6,4487.3,0.41230001]
[1759567265753,1.337,4487.8,4487.1,1.22384298]
[1759567265754,5.26216124,4487.2,4487.1,1.22384298]
[1759567266480,7.07738365,4487.2,4487.1,1.22384298]
[1759567266783,7.51318365,4487.2,4487.1,1.22384298]
[1759567266939,7.07738365,4487.2,4487.1,1.22384298]
[1759567267367,7.92553666,4487.2,4487.1,1.22384298]
[1759567267976,8.36133666,4487.2,4487.1,1.22384298]
[1759567268881,8.90909684,4487.2,4487.1,1.22384298]
[1759567269181,8.90909684,4487.2,4486.1,0.01]